{"text_format":"1","workbook":"xlsx","n_sheets":3,"sheets":["Feuil1","Feuil2","Feuil3"],"not_rendered":{"charts":0,"images":0,"macros":1,"external_links":0,"defined_names":0,"comments":0,"pivot_tables":0},"unopened":[],"bounds":{"document_bytes":16777216,"sheet_cells":100000,"rows_first":2000,"rows_last":500,"rows_between":2000,"halvings":0,"cell_chars":16384,"cell_head_chars":4096},"cells_cut":0,"cells_raw":0,"read":"whole","date_system":"1900"}

{"sheet":"Feuil1","index":0,"n_rows":59,"n_cols":6,"rows_kept":59,"cut":false,"hidden":false,"merged":[]}
["Désignation ","Stock disponible","Prix unitaire","Valeur du stock "]
["Accras CREVETTE",15,5,{"$f":"B2*C2","v":75}]
["Accras MORUE",12,5,60,null,{"$f":"SUM(B:B)","v":885}]
["Ballotin de chocolats ELOT cocktail 180 g",9,5,45,null,","]
["Ballotins de chocolat ELOT 100g",0,8,0,null,{"$f":"SUM(D:D)","v":8544}]
["Berlingots de sucre 50 g",100,1,100]
["Berlingots sucre de canne 100 g",20,1,20]
["Blanc manger COCO",13,6,78]
["Bonbon rhum vieux 120 g",40,5,200]
["Café moulu Vanille MAISON TAILLEFER 125 g ",85,5,425]
["Carafe Rhum Vieux Millésimé CLEMENT 70cl + étui",21,16,336]
["Chiquetaille de morue 200 g",15,7,105]
["Chocolat de communion ELOT 125 g ",45,7,315]
["Citrons verts",40,0.5,20]
["Coffret vieux rhum CLEMENT VSOP 10ans d'age 70 cl",6,85,510]
["Confiture pays ROYAL 330g",17,5,85]
["Cubi de rhum blanc CLEMENT 3L ",13,65,845]
["Cubi de rhum vieux CLEMENT 3L",14,80,1120]
["Epices rouces",15,7,105]
["Jambon cuit fumé SANZO env.1Kg",12,15,180]
["Jambon précuit fumé AVEC OS 3 Kg",0,15,0]
["Jus d'ananas ROYAL ",10,3,30]
["Jus de cocktail ROYAL",10,3,30]
["Jus de goyave ROYAL",10,3,30]
["Liqueur Blue CLEMENT 70 cl",5,15,75]
["Liqueur Gold CLEMENT 70 cl",3,15,45]
["Miel",18,7,126]
["Nougat pistache ",18,5,90]
["Pain au beurre 400G",12,10,120]
["Panier Douceur 150 g ",18,7,126]
["Panier Douceur 300 g ",8,10,80]
["Pâtés créoles salés",80,1,80]
["Planteur CLEMENT 70 cl",15,15,225]
["Punch coco BIGUINE 70 cl",12,10,120]
["Punch Coco CLEMENT 70 cl",19,15,285]
["Rhum blanc CLEMENT 70 cl",15,30,450]
["Rhum blanc DILLON",13,8,104]
["Rhum blanc SAINT-JAMES  70 cl",12,12,144]
["Rhum vieux CLEMENT I.O",1,75,75]
["Rhum vieux CLEMENT 70 cl"]
["Rhum vieux SAINT-JAMES 70 cl",23,35,{"$f":"B41*C41","v":805}]
["Savons ",6,5,30]
["Schrubb",20,30,600]
["Tablette de chocolat ELOT 100 g",50,2,100]
["Verre à Punch CLEMENT ",12,5,60]
["Vieux rhum Saint James 70 cl Cuvée Excellence",3,30,90]
["PANIER BIGUINE"]
["PANIER FETE"]
["PANIER KREOL"]
["PANIER REVEILLON"]
["PANIER COCO"]
["PANIER VIEUX RHUM"]
["PANIER CADEAU"]
["PANIER MIGNON"]
["PANIER GOLD"]
["PANIER TI PUNCH"]
["PANIER PRESTIGE"]
["LE SUPREME"]
["LE LUXE"]

{"sheet":"Feuil2","index":1,"n_rows":0,"n_cols":0,"rows_kept":0,"cut":false,"hidden":false,"merged":[]}

{"sheet":"Feuil3","index":2,"n_rows":0,"n_cols":0,"rows_kept":0,"cut":false,"hidden":false,"merged":[]}